Cogmind - Beta 15 @@@ ROGUE MODE // 2025.06.13 @ 22:41:44 Player: ned_arb Result: Destroyed by J6-BMB(R) with Subdweller Laser Performance ------------- Evolutions (0) 0 Regions Visited (2) 400 Robots Destroyed (33) 165 Value Destroyed (575) 575 Prototype IDs (0) 0 Alien Tech Used (0) 0 Bonus (0) 0 TOTAL SCORE: 1140 Bonus ------- None Cogmind --------- Core Integrity 0/250 Matter 255/300 Energy 240/250 System Corruption 2% Temperature Cool (6) Movement Treading (160) Location -10/Subcaves Parts ------- > --- POWER (1) -------- Ion Engine > --- PROPULSION (2) --- Light Treads Light Treads > --- UTILITY (2) ------ Large Storage Unit > --- WEAPON (2) ------- Assault Rifle Rocket Launcher > --- INVENTORY (15) --- Wheel Heat Sink Large Storage Unit High-capacity Matter Pod (81) Tractor Beam Assault Rifle Assault Rifle Rocket Launcher Datajack Mace Peak State ------------ > --- POWER ------------ Ion Engine > --- PROPULSION ------- Light Treads Light Treads > --- UTILITY ---------- Medium Storage Unit Seismic Detector > --- WEAPON ----------- Assault Rifle Assault Rifle > --- INVENTORY -------- Ion Engine Light Treads Wheel Heat Sink High-capacity Matter Pod Assault Rifle Assault Rifle Grenade Launcher Grenade Launcher Datajack [Rating: 8] Favorites ----------- Power Ion Engine Engine Ion Engine Propulsion Light Treads Treads Light Treads Utility Large Storage Unit Device Seismic Detector Storage Large Storage Unit Protection Light Armor Plating Weapon Assault Rifle Ballistic Gun Assault Rifle Launcher Grenade Launcher Special Melee Weapon Datajack Build | -11 -10 -10 ------- Run | Yrd Mat Sub Slots Evolved . | . . . Power . | . . . Propulsion . | . . . Utility . | . . . Weapon . | . . . Parts Attached 26 | 7 15 4 Power 4 | 1 2 1 Engine 4 | 1 2 1 Core . | . . . Reactor . | . . . Propulsion 3 | 2 . 1 Treads 3 | 2 . 1 Leg . | . . . Wheel . | . . . Hover . | . . . Flight . | . . . Utility 7 | 2 5 . Device 3 | 1 2 . Storage 3 | 1 2 . Processor . | . . . Hackware . | . . . Protection 1 | . 1 . Artifact . | . . . Weapon 12 | 2 8 2 Energy Gun . | . . . Energy Cannon . | . . . Ballistic Gun 7 | 2 4 1 Ballistic Cannon . | . . . Launcher 4 | . 3 1 Special Weapon . | . . . Impact Weapon . | . . . Slashing Weapon . | . . . Piercing Weapon . | . . . Special Melee Weapon 1 | . 1 . Unidentified Prototypes . | . . . Parts Lost 4 | . . 4 Power 1 | . . 1 Propulsion 1 | . . 1 Utility 1 | . . 1 Weapon 1 | . . 1 Highest Loss Streak 3 | . . 3 To Critical Strikes . | . . . Average Backups 10 | 1 10 12 Power 1 | . 1 . Propulsion 1 | . 1 1 Utility 2 | . 2 4 Weapon 4 | . 4 4 Tool/Special . | . . . Unused Backups 7 | . 1 6 Power . | . . . Propulsion 2 | . 1 1 Utility 3 | . . 3 Weapon 2 | . . 2 Tool/Special . | . . . Average Slot Usage (%) 85 | . 91 65 Engine 11 | . 14 3 Treads 25 | . 27 17 Device 2 | . 2 . Storage 15 | . 16 14 Protection 1 | . 1 1 Ballistic Gun 27 | . 27 28 Peak Build Rating 8 | 7 8 8 Average Rating 6 | 5 7 5 On Entrance 5 | . 7 8 Naked Turns . | . . . Heaviest Build 40 | 15 40 32 Greatest Support 40 | 40 40 40 Greatest Overweight (x) 1 | 1 . 1 Average Overweight (x) . | . . . Largest Inventory Capacity 15 | 8 15 15 Average Capacity 12 | 6 12 15 Most Carried 14 | 2 14 13 Average Carried 10 | 1 10 12 Final Capacity 15 | 8 15 15 Final Carried 13 | 2 13 10 Class Distribution -------------------- 100% | Mutant Dominant Class ---------------- Mutant | -10/Materials Mutant | -10/Subcaves Resources | -11 -10 -10 ----------- Run | Yrd Mat Sub Matter Collected 1175 | 275 785 115 Remotely . | . . . Salvage Created 1018 | 43 861 114 Parts 55 | 7 43 5 Haulers Intercepted 2 | . 2 . Recyclers Shooed 1 | . 1 . Parts Field Recycled . | . . . Retrieved Matter . | . . . Parts Self-Destructed 7 | . . 7 Prevented . | . . . Kills | -11 -10 -10 ------- Run | Yrd Mat Sub Combat Hostiles Destroyed 17 | . 14 3 Guns 11 | . 8 3 AOE 6 | . 6 . Classes Destroyed 9 | 1 7 1 Worker 1 | . 1 . Tunneler 4 | 2 2 . Hauler 2 | . 2 . Recycler 5 | . 5 . Operator 1 | . 1 . Watcher 3 | . 3 . Swarmer 7 | . 6 1 Grunt 8 | . 8 . Subdweller 2 | . . 2 Best Kill Streak 4 | 1 4 2 Combat Bots Only 3 | . 3 2 Max Kills in Single Turn 2 | 1 2 1 Gunslinging . | . . . Exploded 2 | . 2 . Melee . | . . . Uniques/NPCs Destroyed . | . . . Combat | -11 -10 -10 -------- Run | Yrd Mat Sub Hostile Shots Fired 109 | . 61 48 Missed 29 | . 16 13 Hits 80 | . 45 35 Projectile 80 | . 45 35 AOE 2 | . . 2 Critical Strikes 1 | . 1 . Damage Taken 1315 | . 504 811 Core 250 | . 101 149 Absorbed by Shields . | . . . Regen/Repaired (Parts) 233 | . 233 . Core Remaining (%) 100 | 100 . . Volleys Fired 87 | 4 66 17 Largest 2 | 2 2 2 Hottest 40 | 40 40 40 Shots Fired 164 | 8 123 33 Gun 154 | 8 114 32 Cannon . | . . . Launcher 10 | . 9 1 Special . | . . . Kinetic 154 | 8 114 32 Thermal . | . . . Explosive 10 | . 9 1 Electromagnetic . | . . . Robot Hit Streak 24 | 2 17 24 Robot Miss Streak 3 | 2 3 1 Penetration Max . | . . . Secondary Targets . | . . . Shots Hit Robots 120 | 4 85 31 Core Hits 50 | 2 40 8 Critical Kills 2 | . 2 . Critical Parts Destroyed 2 | . 2 . Critical Strikes 4 | . 4 . Destroy 4 | . 4 . Melee Attacks 3 | . 3 . Impact . | . . . Slashing . | . . . Piercing . | . . . Sneak Attacks 3 | . 3 . Combat Hostiles . | . . . Follow-up Attacks . | . . . Damage Inflicted 1942 | 55 1656 231 Guns 1229 | 55 1057 117 Cannons . | . . . Explosions 697 | . 583 114 Melee . | . . . Ramming 16 | . 16 . Kinetic 1229 | 55 1057 117 Thermal . | . . . Explosive 697 | . 583 114 Electromagnetic . | . . . Impact . | . . . Slashing . | . . . Piercing . | . . . Highest Corruption 2 | . 2 2 Average Corruption 2 | . 2 2 Corruption Purged . | . . . Corruption Blocked . | . . . Effects 25 | . 17 8 Message Errors 9 | . 6 3 Matter Fused 7 | . 6 1 Energy Discharges 2 | . 2 . Data Loss (minor) 5 | . 3 2 Data Loss (major) 2 | . . 2 Overload Shots . | . . . Overflow Damage 46 | . 46 . Projectiles . | . . . Explosions 46 | . 46 . Melee . | . . . Knockbacks . | . . . Impact . | . . . Kinetic . | . . . Secondary . | . . . Self-Inflicted Damage . | . . . Shots . | . . . Rammed 2 | . 2 . Targets Rammed 3 | . 3 . Kicked . | . . . Crushed 1 | . 1 . Highest Temperature 24 | . 24 . Average Temperature 7 | . 7 . Received Heat Transfer 462 | . 258 204 Siege Activations . | . . . Martial Activations . | . . . Shielding Activations . | . . . Robots Disrupted . | . . . Combat Hostiles . | . . . Robots Corrupted . | . . . Combat Hostiles . | . . . Parts Fried . | . . . Impact Corruptions . | . . . Robots Melted . | . . . Combat Hostiles . | . . . Parts Melted . | . . . Heat Transferred . | . . . Parts Sabotaged . | . . . Parts Stolen . | . . . Parts Stripped . | . . . Power Chain Reactions . | . . . Alert | -11 -10 -10 ------- Run | Yrd Mat Sub Maximum Alert Level . | . . . Low Security (%) 100 | 100 100 . Level 1 . | . . . Level 2 . | . . . Level 3 . | . . . Level 4 . | . . . Level 5 . | . . . High Security . | . . . Max Security . | . . . Peak Influence 124 | 5 124 . Initial . | . . . Average 37 | . 40 . Influence Increases 553 | 10 523 20 Destroy 0b10 Robot/C 300 | . 280 20 Destroy 0b10 Robot/NC 80 | 10 70 . Destroy Leader 70 | . 70 . Successful Hack 48 | . 48 . Destroy Structure 40 | . 40 . Lose Combat Pursuer 15 | . 15 . Influence Decreases 553 | 10 502 41 Entered New Map 11 | . . 11 Time Decay 419 | 10 379 30 Purge Threat 123 | . 123 . Squads Dispatched 2 | . 2 . Investigation 1 | . 1 . Extermination . | . . . Reinforcement 1 | . 1 . Assault . | . . . Garrison . | . . . Intercept . | . . . Searches Triggered . | . . . Construction Impeded . | . . . Haulers Reinforced . | . . . Active Scanning Responses . | . . . Cargo Convoy Interrupts . | . . . Stealth | -11 -10 -10 --------- Run | Yrd Mat Sub Distress Signals . | . . . Communications Jammed . | . . . Distress Signals . | . . . Times Spotted 31 | . 25 6 Peak Tracking Total 4 | . 4 2 Tactical Retreats 1 | . 1 . Traps | -11 -10 -10 ------- Run | Yrd Mat Sub Traps Triggered 2 | . 2 . Indirectly . | . . . Trap Hack Attempts . | . . . Triggered . | . . . Disarmed . | . . . Reprogrammed . | . . . Reused . | . . . Traps Extracted . | . . . Installed . | . . . Triggered . | . . . Machines | -11 -10 -10 ---------- Run | Yrd Mat Sub Machines Disabled . | . . . Max in Single Turn . | . . . Machines Repaired . | . . . Machines Dismantled . | . . . Machines Sabotaged . | . . . Overloaded Fab Kills . | . . . Hacking | -11 -10 -10 --------- Run | Yrd Mat Sub Machines Accessed 9 | . 9 . Terminals 7 | . 7 . Fabricators . | . . . Repair Stations 1 | . 1 . Recycling Units 1 | . 1 . Scanalyzers . | . . . Garrison Access . | . . . Total Hacks 37 | . 37 . Successful 26 | . 26 . Failed 10 | . 10 . Catastrophic . | . . . Database Lockouts 1 | . 1 . Manual 19 | . 19 . Terminals 27 | . 27 . Fabricators . | . . . Repair Stations 8 | . 8 . Recycling Units 2 | . 2 . Scanalyzers . | . . . Garrison Access . | . . . Terminal Hacks 9 | . 9 . Part Schematic 1 | . 1 . Level Access Points 1 | . 1 . Branch Access Points 1 | . 1 . Unreport Threat 2 | . 2 . Locate Traps 2 | . 2 . Dispatch Records 1 | . 1 . Zone Layout 1 | . 1 . Fabricator Hacks . | . . . Repair Station Hacks 8 | . 8 . Scan Component 4 | . 4 . Repair 4 | . 4 . Recycling Unit Hacks 2 | . 2 . Report Inventory 1 | . 1 . Retrieve Components 1 | . 1 . Scanalyzer . | . . . Garrison Access Hacks . | . . . Unauthorized Hacks 7 | . 7 . Terminals 7 | . 7 . Botnet 7 | . 7 . Fabricators . | . . . Repair Stations . | . . . Recycling Units . | . . . Scanalyzers . | . . . Garrison Access . | . . . Data Cores Recovered . | . . . Used . | . . . Hacking Detections 7 | . 7 . Full Trace Events 1 | . 1 . Feedback Events . | . . . Feedback Blocked . | . . . Robot Schematics Acquired . | . . . Robots Built . | . . . Authchips . | . . . Time . | . . . Total Robot Build Rating . | . . . Part Schematics Acquired 1 | . 1 . Parts Built . | . . . Authchips . | . . . Time . | . . . Total Part Build Rating . | . . . Parts Repaired 4 | . 4 . Time 104 | . 104 . Parts Recycled . | . . . Recycled Matter . | . . . Retrieved Matter . | . . . Retrieved Components 9 | . 9 . Parts Scanalyzed . | . . . Part Schematics Acquired . | . . . Parts Damaged . | . . . Bothacking | -11 -10 -10 ------------ Run | Yrd Mat Sub Used RIF Installer . | . . . Robots Hacked 2 | . 2 . Non-combat 2 | . 2 . Combat . | . . . Robot Hacks Applied 2 | . 2 . parse_system 1 | . 1 . find_recycling 1 | . 1 . Relay Couplers Released . | . . . Fabnet Peak Effective % . | . . . Robots Rewired . | . . . Allies Hacked . | . . . Hacks Repelled . | . . . Allies | -11 -10 -10 -------- Run | Yrd Mat Sub Total Allies . | . . . Largest Group . | . . . Highest-Rated Group . | . . . Highest-Rated Ally . | . . . Total Orders . | . . . Ally Attacks . | . . . Total Damage . | . . . Kills . | . . . Allies Corrupted . | . . . Allies Melted . | . . . Intel | -11 -10 -10 ------- Run | Yrd Mat Sub Active Infowar (turns) 383 | 13 370 . Seismic 383 | 13 370 . Robot Analysis Total . | . . . Derelict Logs Recovered 1 | . . 1 Drone Launches . | . . . Drone Recoveries . | . . . Exploration | -11 -10 -10 ------------- Run | Yrd Mat Sub Turns Passed 2506 | 123 1818 565 Spaces Moved 1122 | 64 834 224 Core 8 | 8 . . Treads 1114 | 56 834 224 Legs . | . . . Wheels . | . . . Hover . | . . . Flight . | . . . Fastest Speed 50 | 50 160 160 Average Speed 170 | 150 160 217 Slowest Speed 240 | 160 160 240 Overloaded Moves . | . . . Propulsion Burnouts . | . . . Robots Hopped . | . . . Potential Cave-ins . | . . . Cave-ins Triggered . | . . . Exploration Rate (%) 38 | 5 98 13 Regions Visited 2 Branch Regions 1 Pre-discovered Areas . | . . . Known Exits Taken . | . . . Unknown Exits Taken 2 | 1 1 . Scrap Searched . | . . . Spaces Dug . | . . . Terrain Destroyed 59 | . 49 10 Melee . | . . . Projectile . | . . . AOE 59 | . 49 10 Terrain Rammed . | . . . Walls Destroyed . | . . . Machines Disabled . | . . . Actions | -11 -10 -10 --------- Run | Yrd Mat Sub Total 1537 | 79 1189 269 Wait 256 | 3 229 24 Move 1120 | 63 833 224 Hop . | . . . Pick Up 16 | 2 14 . Fast Attach 14 | 7 7 . Attach 5 | . 2 3 Detach 3 | . 3 . Swap 17 | . 16 1 Drop 13 | . 13 . Fire 87 | 4 66 17 Melee 3 | . 3 . Ram . | . . . Kick . | . . . Crush 3 | . 3 . Escape Stasis . | . . . Rewire . | . . . Trap . | . . . Miscellaneous . | . . . Route ------- -11/Scrapyard -10/Materials (discovered 5 exits: *Mat x3 / *Min / [*Sub]) -10/Subcaves History --------- Turn | Location | Event 14 | -11/Scrapyard | Discovered new exit (range 14) 124 | -11/Scrapyard | Entered Materials 277 | -10/Materials | Central database locked down 302 | -10/Materials | Build established: Mutant 408 | -10/Materials | Discovered new exit (range 16) 471 | -10/Materials | Discovered new exit (range 8) 1033 | -10/Materials | Discovered new exit (range 16) 1042 | -10/Materials | Identified exit to Materials 1042 | -10/Materials | Identified exit to Mines 1748 | -10/Materials | Repaired Lgt. Treads 1775 | -10/Materials | Repaired Lgt. Treads 1803 | -10/Materials | Repaired Assault Rifle 1830 | -10/Materials | Repaired Assault Rifle 1942 | -10/Materials | Entered Subcaves 1943 | -10/Subcaves | Approached by a straggling Scientist 1950 | -10/Subcaves | Learned 4 Materials zone layouts 1961 | -10/Subcaves | Ambushed by Subdwellers from Twisted Machinery 1965 | -10/Subcaves | Core integrity fell below 50% 2001 | -10/Subcaves | Core integrity fell below 20% 2029 | -10/Subcaves | Lost 3 parts (1p1n1u) 2240 | -10/Subcaves | A swath of the cavern ceiling suddenly collapsed 2507 | -10/Subcaves | Destroyed by J6-BMB(R) with Subdweller Laser Last Messages --------------- 02026_ Subatomizers dissect the Lgt. Ion Engine. 02047_ System corrupted: Matter fused (-5). 02079_ System corrupted: Component data lost. 02136_ S-10 Pest destroyed. 02143_ Lgt. Assault Rifle fries itself beyond repair. 02153_ Lgt. Ion Engine fries itself beyond repair. 02156_ Acquired 14 matter. 02172_ T&0RC N KSU5L &ITQERKPOMKR A swath of the cavern ceiling suddenly collapses. 02291_ System corrupted: Substantial component data lost. 02421_ R|CDZK5/PFQ CWC6UJ